bitfinex/quotes_ETHUSD_20250222
["timestamp","ask_amount","ask_price","bid_price","bid_amount"]
[1740220492491,0.4,2744.4,2744.1,3.64408]
[1740220492686,0.4,2744.4,2744.2,3.64401]
[1740220492861,0.4,2744.4,2744.3,3.64391]
[1740220497098,0.4,2744.4,2744.0,8.94424]
[1740220497297,0.4,2744.4,2744.1,3.64417]
[1740220497497,0.4,2744.4,2744.2,3.64394]
[1740220498807,0.4,2744.4,2744.0,5.3]
[1740220499010,0.4,2744.4,2744.2,3.64402]
[1740220499706,0.4,2744.4,2744.3,3.64391]
[1740220499904,0.4,2744.4,2744.0,5.3]
[1740220501000,0.4,2744.4,2744.0,3.64431]
[1740220501205,0.4,2744.4,2744.1,3.6441]
[1740220501704,0.4,2744.4,2744.0,3.64429]
[1740220503092,0.8025,2744.3,2743.8,0.298]
[1740220503292,0.8025,2744.3,2743.9,3.64437]
[1740220505004,3.64409,2744.2,2743.6,5.3]
[1740220505207,0.7693,2743.9,2743.2,5.3]
[1740220505385,0.7693,2743.3,2743.2,5.3]
[1740220505583,0.7693,2743.3,2743.1,0.005]
[1740220506509,4.41467,2743.2,2743.1,0.005]
[1740220507806,0.7693,2743.2,2743.1,0.005]
[1740220513139,0.8245,2743.4,2743.1,0.005]
[1740220515367,0.8245,2743.7,2743.1,0.3044]
[1740220515530,0.8245,2743.7,2743.3,3.64516]
[1740220516262,1.635864,2743.7,2743.3,3.64516]
[1740220516661,1.635864,2743.7,2743.1,3.94984]
[1740220516843,1.635864,2743.7,2743.2,3.64534]
[1740220518950,4.46936,2743.6,2743.1,0.005]
[1740220519116,3.42277824,2743.8,2743.1,0.005]
[1740220519321,3.64511,2743.4,2743.1,0.005]
[1740220521717,0.8245,2743.5,2743.1,0.005]
[1740220522053,4.916457,2743.5,2743.1,0.005]
[1740220522613,1.271437,2743.5,2743.1,0.005]
[1740220522853,0.8245,2743.5,2743.1,0.005]
[1740220523164,3.64537,2743.2,2743.1,0.005]
[1740220523369,4.41477,2743.2,2743.1,0.005]
[1740220523662,4.41477,2743.2,2742.0,3.42277824]
[1740220523663,4.41587,2742.4,2742.0,0.2994]
[1740220523818,4.41587,2742.4,2741.8,0.4491027]
[1740220524552,3.64663,2742.3,2741.8,0.4491027]
[1740220525349,3.64663,2742.3,2741.8,0.1497027]
[1740220525654,4.41587,2742.4,2741.8,0.1497027]
[1740220526272,3.64666,2742.3,2741.8,0.1497027]
[1740220526554,0.7651,2742.7,2742.1,3.64683]
[1740220526719,4.41115,2742.7,2742.1,3.64683]
[1740220526922,4.41115,2742.7,2742.0,0.2994]
[1740220527156,3.64628,2742.6,2742.0,0.2994]
[1740220527476,3.64641,2742.5,2742.0,0.2994]
[1740220528126,3.64653,2742.4,2741.8,5.4497027]
[1740220528322,0.7651,2742.4,2741.8,5.4497027]
[1740220528527,3.64674,2742.2,2741.8,5.4497027]
[1740220528924,0.7651,2742.4,2741.8,5.4497027]
[1740220529144,4.4122,2741.9,2741.8,0.1497027]
[1740220529425,5.218116,2741.9,2741.8,2.7e-06]
[1740220529622,13.96089424,2741.9,2741.8,2.7e-06]
[1740220531223,10.538116,2741.9,2741.8,2.7e-06]
[1740220531757,13.96089424,2741.9,2741.8,2.7e-06]
[1740220532861,16.96089424,2741.9,2741.8,2.7e-06]
[1740220534463,3.0,2741.8,2740.4,3.64905]
[1740220534668,3.0,2741.8,2740.3,0.62255859]
[1740220534669,3.64855,2740.9,2740.3,0.62255859]
[1740220534865,0.7651,2740.9,2740.5,0.18928881]
[1740220535179,4.41315,2741.2,2740.4,3.64901]
[1740220535347,3.6483,2741.0,2740.4,3.64901]
[1740220535545,3.6483,2741.0,2740.6,0.18930042]
[1740220535759,3.6483,2741.0,2740.3,0.62255859]
[1740220536077,3.6483,2741.0,2740.7,0.18930042]
[1740220536226,3.64852,2740.9,2740.3,0.62255859]
[1740220536429,3.64852,2740.9,2740.8,0.18930042]
[1740220536629,3.64852,2740.9,2740.3,0.62255859]
[1740220536870,3.64852,2740.9,2740.8,0.18930042]
[1740220537045,3.64852,2740.9,2740.3,0.62255859]
[1740220537246,3.64852,2740.9,2740.8,0.18930042]
[1740220537756,3.64818,2741.1,2740.8,0.18930042]
[1740220538131,3.64818,2741.1,2740.9,0.18930042]
[1740220538472,3.64818,2741.1,2740.7,0.2994]
[1740220538632,3.64818,2741.1,2741.0,0.18930042]
[1740220539670,5.32,2741.5,2741.0,0.18930042]
[1740220539872,5.32,2741.5,2740.8,3.64856]
[1740220540048,5.32,2741.5,2741.1,0.18950938]
[1740220540248,8.96764,2741.5,2741.1,0.18950938]
[1740220540748,5.32,2741.5,2741.1,0.18950938]
[1740220541373,5.32,2741.5,2741.2,0.2994]
[1740220541586,5.32,2741.5,2741.1,0.18950938]
[1740220541790,0.60957,2741.4,2741.1,0.18950938]
[1740220542068,4.4236,2741.3,2741.2,0.18906826]
[1740220542472,4.4236,2741.3,2740.4,5.3]
[1740220542473,3.6483,2741.1,2740.4,8.94902]
[1740220542771,3.64833,2741.0,2740.4,8.94902]
[1740220542948,3.64833,2741.0,2740.5,0.18906826]
[1740220544676,4.377991,2741.0,2740.5,0.18906826]
[1740220545452,0.729661,2741.0,2740.5,0.18906826]
[1740220545661,4.378001,2741.0,2740.5,0.18906826]
[1740220545969,0.729661,2741.0,2740.6,3.64882]
[1740220546166,3.64806,2741.2,2740.6,3.64882]
[1740220546549,3.64806,2741.2,2740.7,0.18906826]
[1740220546744,3.64829,2741.1,2740.7,0.18906826]
[1740220546951,3.64833,2741.0,2740.7,0.18906826]
[1740220547546,3.64806,2741.2,2740.8,0.1891263]
[1740220547743,4.090556,2741.1,2740.5,3.64896]
[1740220548148,4.090556,2741.1,2740.6,0.1891263]
[1740220549600,3.64845,2740.9,2740.6,0.1891263]
[1740220549896,4.090556,2741.1,2740.7,0.1891263]
[1740220551007,3.64831,2741.0,2740.7,0.1891263]
[1740220551300,0.7738866,2740.9,2740.4,12.89742]
[1740220551488,0.7738866,2740.9,2740.8,0.18275072]
[1740220551683,0.7738866,2740.9,2740.4,3.9484]
[1740220551885,0.7738866,2740.9,2740.8,0.18275072]
[1740220552182,0.7738866,2740.9,2740.5,3.64896]
[1740220552386,1.5426866,2740.9,2740.5,3.64896]
[1740220552697,1.5426866,2740.9,2740.2,3.64928]
[1740220552698,4.16779566,2740.8,2740.2,7.59797]
[1740220552900,4.16779566,2740.8,2740.3,4.27176859]
[1740220553070,0.51910566,2740.8,2740.4,3.83184072]
[1740220553269,4.4169,2741.2,2740.6,3.6487]
[1740220553810,0.7688,2741.2,2740.7,0.18323829]
[1740220554267,4.41684,2741.2,2740.7,0.18323829]
[1740220554478,4.41684,2741.2,2740.4,3.649]
[1740220554703,3.64831,2741.0,2740.8,0.18149339]
[1740220554910,3.64831,2741.0,2740.5,3.64895]
[1740220555259,3.64831,2741.0,2740.6,0.18149339]
[1740220555906,3.64831,2741.0,2740.4,3.64909]
[1740220556099,0.4089994,2740.9,2740.7,0.18143538]
[1740220556309,4.41736,2740.8,2740.3,0.62255859]
[1740220556709,3.64881,2740.7,2740.3,0.62255859]
[1740220557373,0.441684,2741.1,2740.5,3.64885]
[1740220557615,0.7688,2741.0,2740.7,3.64861]
[1740220557918,4.41718,2741.0,2740.4,3.94847]
[1740220558211,3.64847,2740.9,2740.3,4.27174859]
[1740220558393,3.64847,2740.9,2740.3,7.92088859]
[1740220558592,3.64847,2740.9,2740.4,3.64909]
[1740220558765,3.64847,2740.9,2740.3,4.27169859]
[1740220558966,3.64857,2740.8,2740.3,4.27169859]
[1740220559166,0.89165314,2740.8,2740.3,0.62255859]
[1740220559367,3.64871,2740.7,2740.3,0.62255859]
[1740220559609,4.41716,2741.0,2740.4,3.649]
[1740220559963,0.7688,2741.0,2740.3,0.62255859]
[1740220560302,0.7688,2741.0,2740.4,0.2994]
[1740220560458,3.64843,2740.9,2740.3,4.27169859]
[1740220560661,4.454976,2740.9,2740.3,4.27169859]
[1740220561415,0.806546,2740.9,2740.5,3.64896]
[1740220561743,0.7688,2741.0,2740.5,3.64889]
[1740220562066,0.7688,2741.0,2740.6,3.64882]
[1740220562292,0.7688,2741.0,2740.5,3.64893]
[1740220562900,0.7688,2741.0,2740.6,3.64883]
[1740220563093,0.7688,2741.0,2740.5,3.64889]
[1740220563302,1.210502,2741.0,2740.5,3.64889]
[1740220563599,1.210502,2741.0,2740.6,3.82512915]
[1740220563893,1.210502,2741.0,2740.6,0.17631915]
[1740220564097,3.6487,2740.7,2740.6,0.17631915]
[1740220564298,7.4565,2740.7,2740.6,0.17631915]
[1740220564513,3.6491,2740.4,2740.3,0.62255859]
[1740220564711,4.4569,2740.4,2740.3,0.62255859]
[1740220566216,7.4569,2740.4,2740.3,0.62255859]
[1740220567868,3.50578382,2740.7,2740.3,0.62255859]
[1740220568169,3.64884,2740.6,2740.3,0.62255859]
[1740220568387,0.7757,2740.7,2740.3,0.62255859]
[1740220568603,16.42155,2740.9,2740.4,0.17027291]
[1740220568764,0.7757,2740.8,2740.3,0.62255859]
[1740220568965,5.368465,2740.7,2740.5,0.17027291]
[1740220569170,3.4693,2740.2,2739.0,0.1497027]
[1740220569362,0.7757,2739.1,2739.0,0.1497027]
[1740220569658,0.7757,2739.7,2739.0,0.1497027]
[1740220569871,4.42577,2739.7,2739.0,0.1497027]
[1740220570275,3.65039,2739.5,2739.0,0.1497027]
[1740220570483,3.65058,2739.3,2739.0,0.1497027]
[1740220570701,3.65019,2739.6,2739.0,0.1497027]
[1740220570879,3.65052,2739.4,2739.0,0.1497027]
[1740220571891,3.6504,2739.5,2739.0,0.1497027]
[1740220572088,3.65083,2739.1,2739.0,0.1497027]
[1740220572803,3.65068,2739.3,2739.0,0.1497027]
[1740220573028,4.42615,2739.4,2739.0,0.1497027]
[1740220573306,0.7757,2739.4,2739.0,0.1497027]
[1740220573671,4.42614,2739.4,2739.0,0.1497027]
[1740220573998,3.65061,2739.3,2739.0,0.1497027]
[1740220574200,3.65071,2739.2,2739.0,0.1497027]
[1740220574605,5.8465748,2739.4,2739.0,0.1497027]
[1740220574785,3.65056,2739.3,2739.0,0.1497027]
[1740220575192,3.65083,2739.1,2739.0,0.1497027]
[1740220575505,4.380969,2739.1,2739.0,0.1497027]
[1740220576207,3.65083,2739.1,2739.0,0.1497027]
[1740220578304,3.65083,2739.1,2739.0,0.27907422]
[1740220580309,3.65163,2738.5,2738.4,1.25]
[1740220580534,3.65163,2738.5,2738.1,0.005]
[1740220580535,3.65203,2738.2,2738.1,0.005]
[1740220580724,10.89860824,2738.2,2738.1,0.005]
[1740220580930,13.09945806,2738.2,2738.1,0.005]
[1740220582330,3.65136,2738.7,2738.1,0.005]
[1740220582631,3.42277824,2738.6,2738.1,0.005]
[1740220582937,3.652,2738.3,2738.2,0.10269381]
[1740220583232,3.65141,2738.7,2738.2,0.10269381]
[1740220583233,3.65139,2738.7,2738.2,0.10269381]
[1740220583533,3.65172,2738.5,2738.1,0.005]
[1740220583702,3.65203,2738.2,2738.1,0.005]
[1740220583900,3.65203,2738.2,2738.1,0.10769381]
[1740220584647,4.47569,2738.4,2738.1,0.005]
[1740220584953,3.65192,2738.3,2738.1,0.005]
[1740220585116,0.8238,2738.4,2738.1,0.005]
[1740220585451,3.65156,2738.6,2738.2,0.09535854]
[1740220585962,3.65178,2738.4,2738.2,0.09535854]
[1740220586257,3.65156,2738.6,2738.2,0.09535854]
[1740220586464,3.65165,2738.5,2738.2,0.09535854]
[1740220586668,3.65156,2738.6,2738.2,0.09535854]
[1740220586832,4.463162,2738.6,2738.2,0.09535854]
[1740220587160,3.65167,2738.5,2738.2,0.09535854]
[1740220587455,3.65165,2738.5,2738.2,0.09535854]
[1740220587655,3.65186,2738.4,2738.2,0.09535854]
[1740220588150,3.6519,2738.3,2738.2,0.09535854]
[1740220589469,0.811602,2738.6,2738.2,0.09535854]
[1740220589470,4.463162,2738.6,2738.2,0.09535854]
[1740220589652,3.65176,2738.4,2738.2,0.09535854]
[1740220589856,0.5276362,2738.5,2738.2,0.09535854]
[1740220590021,4.46457,2738.7,2738.2,0.09535854]
[1740220590339,4.46456,2738.7,2738.2,0.09535854]
[1740220590539,0.8132,2738.7,2738.2,0.09535854]
[1740220590741,4.46457,2738.7,2738.2,0.09535854]
[1740220591639,3.65094,2739.1,2738.5,7.30317]
[1740220591920,0.444074,2739.0,2738.6,0.09625957]
[1740220592247,4.095044,2739.0,2738.6,0.09625957]
[1740220592451,0.444074,2739.0,2738.6,0.09625957]
[1740220592694,0.444074,2739.0,2738.6,3.74774957]
[1740220592908,0.7898,2739.2,2738.7,3.65136]
[1740220593075,3.64986,2739.9,2739.2,0.1294]
[1740220593403,4.43955,2740.0,2739.3,0.09625957]
[1740220593404,4.43949,2740.0,2739.3,0.09625957]
[1740220593605,3.64987,2739.9,2739.3,0.09625957]
[1740220593915,0.48863322,2739.8,2739.3,0.09625957]
[1740220594073,0.7898,2740.0,2739.2,0.1294]
[1740220594405,5.32,2740.3,2739.7,0.1294]
[1740220594703,5.32,2740.3,2739.7,3.77932]
[1740220594866,5.32,2740.3,2739.8,0.09625957]
[1740220595075,4.43894,2740.4,2739.7,0.1294]
[1740220595259,0.443894,2740.3,2739.8,3.74613957]
[1740220595619,3.64922,2740.4,2739.8,0.09625957]
[1740220595827,3.64945,2740.2,2739.8,0.09625957]
[1740220596170,3.64945,2740.2,2739.7,0.1294]
[1740220596370,3.64954,2740.1,2739.9,0.09625957]
[1740220596612,3.64945,2740.2,2739.7,0.1294]
[1740220596810,3.7898,2740.7,2740.0,0.09625957]
[1740220596811,3.64898,2740.5,2740.0,0.09625957]
[1740220597011,3.64898,2740.5,2739.9,3.64975]
[1740220597320,7.43859,2740.7,2740.0,3.64959]
[1740220597522,3.64861,2740.8,2740.1,3.74358182]
[1740220597817,3.64884,2740.6,2740.1,0.09411182]
[1740220597986,3.64912,2740.4,2740.1,0.09411182]
[1740220598183,3.64912,2740.4,2739.8,3.64986]
[1740220598384,0.364884,2740.5,2740.2,0.09411182]
[1740220598587,4.013854,2740.5,2739.8,3.64986]
[1740220598786,4.013854,2740.5,2740.3,0.09411182]
[1740220599011,0.364884,2740.5,2739.9,3.64974]
[1740220599422,0.364884,2740.5,2740.0,0.09411182]
[1740220599627,7.2978,2740.6,2740.0,0.09411182]
[1740220600894,3.6491,2740.4,2740.0,0.09411182]
[1740220601523,3.64884,2740.6,2740.0,0.09411182]
[1740220601725,3.64884,2740.6,2740.0,0.468497]
[1740220602028,3.64884,2740.6,2740.0,4.118127]
[1740220602428,3.64862,2740.8,2740.1,3.77889]
[1740220602603,3.64856,2740.8,2740.1,0.1294]
[1740220602808,3.64856,2740.8,2740.2,0.09255356]
[1740220603147,10.46,2740.9,2740.2,0.88209643]
[1740220603289,10.46,2740.9,2740.2,0.09255356]
[1740220603490,3.64858,2740.8,2740.2,0.09255356]
[1740220603730,3.64858,2740.8,2740.2,3.74182356]
[1740220607417,11.10851,2740.9,2740.3,3.64913]
[1740220607743,11.10851,2740.9,2740.4,0.09191902]
[1740220607945,11.10851,2740.9,2740.4,3.74100902]
[1740220608126,11.10851,2740.9,2740.4,3.64909]
[1740220608328,11.10851,2740.9,2740.5,0.09191902]
[1740220609250,7.46,2740.9,2740.5,0.09191902]
[1740220609447,7.46,2740.9,2740.4,3.64906]
[1740220609653,7.46,2740.9,2740.5,3.74077902]
[1740220609950,7.46,2740.9,2740.5,0.09191902]
[1740220610152,7.46,2740.9,2740.6,0.1294]
[1740220610451,7.46,2740.9,2740.7,3.6487]
[1740220610677,7.46,2740.9,2740.8,3.64856]
[1740220610810,5.32,2742.3,2740.9,0.1294]
[1740220611010,3.64724,2741.8,2741.1,6.77748]
[1740220611255,3.64708,2742.0,2741.1,3.1294]
[1740220611553,3.64708,2742.0,2741.3,3.64781]
[1740220611722,3.64708,2742.0,2741.4,3.6477]
[1740220611914,3.64686,2742.1,2741.5,3.64762]
[1740220612110,3.64686,2742.1,2741.6,0.09131921]
[1740220612535,3.64698,2742.0,2741.6,0.09131921]
[1740220612741,3.64698,2742.0,2741.3,4.377645]
[1740220612742,3.64712,2741.9,2741.3,4.377645]
[1740220612936,3.64712,2741.9,2741.4,0.09131921]
[1740220614249,3.64698,2742.0,2741.4,0.09131921]
[1740220614477,3.64712,2741.9,2741.4,0.09131921]
[1740220615087,3.64698,2742.0,2741.4,0.09131921]
[1740220615263,3.64711,2741.9,2741.4,0.09131921]
[1740220615463,0.729409,2741.9,2741.4,0.09131921]
[1740220615660,3.64763,2741.5,2741.1,0.1294]
[1740220615855,3.64763,2741.5,2741.2,0.09131921]
[1740220617302,3.64763,2741.5,2740.7,6.6486]
[1740220617303,3.64763,2741.5,2740.7,0.1294]
[1740220617468,0.7819,2741.7,2740.7,0.1294]
[1740220617469,3.64831,2741.0,2740.8,0.09005089]
[1740220617656,3.64801,2741.3,2740.7,7.20850689]
[1740220617851,3.6478,2741.4,2740.8,3.73791908]
[1740220618682,3.64798,2741.3,2740.8,0.08935908]
[1740220618887,3.64798,2741.3,2740.7,4.28078758]
[1740220619087,3.64798,2741.3,2740.8,0.08937061]
[1740220619392,3.64798,2741.3,2740.7,7.92945758]
[1740220619567,3.64798,2741.3,2740.9,0.08937061]
[1740220619767,3.64798,2741.3,2740.7,7.92945758]
[1740220619980,3.64798,2741.3,2741.0,0.08937061]
[1740220620183,3.64798,2741.3,2740.7,7.92945758]
[1740220620490,3.64811,2741.2,2740.7,0.1294]
[1740220620651,3.64811,2741.2,2740.8,0.08937061]
[1740220620652,3.64828,2741.1,2740.8,0.08937061]
[1740220620857,3.64828,2741.1,2740.7,0.1294]
[1740220621070,3.64828,2741.1,2740.9,0.08954353]
[1740220621389,3.64828,2741.1,2740.7,0.1294]
[1740220621595,3.64828,2741.1,2741.0,0.08954353]
[1740220621757,3.64811,2741.2,2740.7,0.1294]
[1740220621957,3.64821,2741.1,2741.0,0.08957812]
[1740220622158,3.64821,2741.1,2740.7,0.1294]
[1740220622404,5.209142,2741.1,2741.0,0.08957812]
[1740220622575,3.6486,2740.8,2740.4,0.1294]
[1740220622902,3.64859,2740.8,2740.5,0.08970495]
[1740220623586,3.64854,2740.9,2740.5,0.08970495]
[1740220623823,3.64883,2740.6,2740.5,0.08970495]
[1740220624106,12.80013,2740.6,2740.5,9.2e-06]
[1740220624320,3.6501,2739.7,2739.4,0.1294]
[1740220624592,3.65016,2739.6,2739.5,0.07174714]
[1740220624775,3.6501,2739.7,2739.5,0.07174714]
[1740220624977,3.6501,2739.7,2739.2,3.43053689]
[1740220625180,3.6501,2739.7,2739.6,0.06918474]
[1740220625491,3.6498,2739.9,2739.6,0.06918474]
[1740220625657,3.6498,2739.9,2739.2,7.08114689]
[1740220625993,0.8208,2740.3,2739.7,3.65003]
[1740220626193,3.64946,2740.2,2739.6,0.1294]
[1740220626498,3.6496,2740.1,2739.6,0.1294]
[1740220626659,3.6496,2740.1,2739.7,0.07074217]
[1740220627060,3.6499,2739.8,2739.7,0.07074217]
[1740220627255,5.200256,2740.1,2739.3,5.4294]
[1740220627491,3.6499,2739.8,2739.4,0.07074217]
[1740220627691,3.65015,2739.7,2739.4,0.07074217]
[1740220627895,3.65025,2739.6,2739.4,0.07074217]
[1740220628592,3.6503,2739.5,2739.4,0.07074217]
[1740220628910,4.380345,2739.5,2738.9,0.1294]
[1740220629208,3.65015,2739.7,2739.4,0.07074217]
[1740220629356,3.64979,2739.9,2739.1,3.65082]
[1740220629605,5.32,2740.0,2739.5,0.07074217]
[1740220629806,3.65001,2739.8,2739.1,3.65073]
[1740220630056,3.65001,2739.8,2739.6,0.07074217]
[1740220630352,0.365001,2739.7,2738.9,0.1294]
[1740220630656,0.365001,2739.7,2739.3,3.65048]
[1740220630818,3.64968,2740.0,2739.3,3.65048]
[1740220631006,3.64995,2739.8,2739.2,3.65059]
[1740220631206,3.64966,2740.0,2739.3,3.77984]
[1740220631406,6.1408,2740.1,2739.5,3.65019]
[1740220631705,3.64965,2740.0,2739.4,3.65042]
[1740220631907,3.64977,2739.9,2739.5,0.07074217]
[1740220632122,4.461637,2740.0,2739.3,3.77992]
[1740220632443,0.811987,2740.0,2739.5,3.65028]
[1740220632737,4.46995,2740.4,2739.8,3.64986]
[1740220632950,0.8208,2740.4,2740.0,3.64963]
[1740220633337,0.8208,2740.4,2740.1,0.07074217]
[1740220633536,0.8208,2740.4,2739.5,0.1294]
[1740220633850,3.64955,2740.1,2739.6,0.07074217]
[1740220634051,0.364955,2740.0,2739.6,0.07074217]
[1740220634616,3.64939,2740.2,2739.7,3.64994]
[1740220634945,3.64939,2740.2,2739.5,3.77965]
[1740220635126,3.64939,2740.2,2739.8,0.07074217]
[1740220635322,3.64924,2740.3,2739.7,3.65]
[1740220635535,3.64924,2740.3,2739.5,3.7796]
[1740220635536,0.8208,2740.4,2739.9,0.07074217]
[1740220635741,0.446982,2740.3,2739.9,3.64968]
[1740220635946,0.446982,2740.3,2740.0,0.07074217]
[1740220636146,3.64902,2740.5,2740.0,0.20014217]
[1740220636348,3.64884,2740.6,2740.1,3.64949]
[1740220636511,0.8208,2740.8,2740.2,3.64936]
[1740220636711,0.8208,2740.8,2740.3,3.6492]
[1740220636979,4.46947,2740.8,2740.3,0.07037284]
[1740220637124,3.64892,2740.6,2740.3,0.07037284]
[1740220637324,3.64892,2740.6,2740.0,0.1294]
[1740220637544,3.64892,2740.6,2740.4,0.07037284]
[1740220637856,3.64908,2740.5,2740.0,0.1294]
[1740220638037,3.64937,2740.2,2739.7,5.3]
[1740220638241,3.64965,2740.0,2739.7,5.3]
[1740220638445,3.64965,2740.0,2739.8,0.06838973]
[1740220638643,8.11964,2740.2,2739.8,0.06838973]
[1740220638959,4.47017,2740.2,2739.9,0.06838973]
[1740220639260,0.8208,2740.5,2739.6,0.1294]
[1740220639474,0.8208,2740.5,2740.0,0.06838973]
[1740220639475,3.64919,2740.4,2740.0,0.06838973]
[1740220639753,0.8208,2740.5,2739.7,0.06838973]
[1740220639954,4.46977,2740.5,2739.9,3.64975]
[1740220640130,4.460976,2740.4,2739.8,3.71823973]
[1740220640637,4.460976,2740.4,2739.8,0.06838973]
[1740220640842,8.110196,2740.4,2739.8,0.06838973]
[1740220641156,4.460976,2740.4,2739.9,3.64974]
[1740220641355,3.64923,2740.3,2739.7,3.64998]
[1740220641655,8.110196,2740.4,2739.8,3.71823973]
[1740220641813,4.460996,2740.4,2739.8,3.71823973]
[1740220642017,3.64923,2740.3,2739.8,0.06838973]
[1740220642356,3.64941,2740.2,2739.7,3.64998]
[1740220642558,3.64941,2740.2,2739.8,0.06838973]
[1740220642758,3.64955,2740.1,2739.6,0.1294]
[1740220643050,0.8931026,2740.3,2739.7,0.06838973]
[1740220643255,3.64938,2740.2,2739.7,0.06838973]
[1740220643459,3.64984,2739.9,2739.7,0.06838973]
[1740220643646,3.6499,2739.8,2739.7,0.06838973]
[1740220643848,0.793,2740.0,2739.3,3.77991]
[1740220644036,4.44271,2740.0,2739.7,0.06857418]
[1740220644239,4.44271,2740.0,2739.4,3.65039]
[1740220644435,4.44271,2740.0,2739.8,0.06857418]
[1740220644664,5.251938,2740.0,2739.4,3.65039]
[1740220644866,0.793,2740.0,2739.5,3.71879418]
[1740220645065,4.44263,2740.0,2739.5,3.71879418]
[1740220646253,0.793,2740.0,2739.5,3.71879418]
[1740220646448,0.793,2740.0,2739.5,3.71878418]
[1740220647184,0.793,2740.0,2739.7,3.65]
[1740220647361,0.804,2740.3,2739.8,0.1294]
[1740220647562,1.4164,2740.3,2739.9,3.64971]
[1740220647888,0.6124,2740.3,2739.9,3.71861854]
[1740220648452,5.32,2740.5,2740.1,3.64945]
[1740220648656,0.804,2740.6,2740.1,7.29886]
[1740220648955,0.804,2740.6,2740.2,3.64936]
[1740220649155,0.804,2740.6,2740.3,0.06890854]
[1740220649369,5.22621,2740.7,2740.1,7.29883]
[1740220649685,5.22621,2740.7,2740.1,3.64941]
[1740220649850,5.22621,2740.7,2740.2,0.06893158]
[1740220650056,1.5775,2740.7,2740.2,0.06893158]
[1740220650375,0.98365,2740.6,2740.1,3.64949]
[1740220650590,3.6491,2740.4,2740.3,0.06893158]
[1740220650755,3.6491,2740.4,2739.8,3.77918]
[1740220650956,0.98365,2740.6,2739.9,0.06893158]
[1740220651160,0.98365,2740.6,2740.0,3.64963]
[1740220651487,0.98365,2740.6,2740.2,3.64936]
[1740220651894,0.98365,2740.6,2740.3,0.06893158]
[1740220652054,0.98365,2740.6,2740.0,3.64963]
[1740220652254,0.46324,2740.5,2740.1,0.06893158]
[1740220652470,0.46324,2740.5,2739.9,3.64973]
[1740220652672,3.6491,2740.4,2740.0,0.06893158]
[1740220653084,3.6491,2740.4,2739.8,3.7792]
[1740220653286,3.6491,2740.4,2739.9,0.06893158]
[1740220653490,1.215234,2740.3,2739.9,0.06893158]
[1740220653663,3.64963,2740.0,2739.4,0.4254]
[1740220653870,3.64963,2740.0,2739.5,0.06893158]
[1740220654284,0.804,2740.3,2739.8,3.64981]
[1740220654672,0.804,2740.3,2739.9,3.71867158]
[1740220655088,0.804,2740.3,2739.9,0.06893158]
[1740220655284,3.64938,2740.2,2739.9,0.06893158]
[1740220655489,3.64938,2740.2,2739.6,3.65008]
[1740220655691,3.64938,2740.2,2739.6,7.30016]
[1740220655887,3.64938,2740.2,2739.7,0.06893158]
[1740220656409,3.64952,2740.1,2739.7,0.06893158]
[1740220656908,3.64964,2740.0,2739.8,0.06893158]
[1740220657408,0.908022,2740.1,2739.7,3.65]
[1740220657610,5.43062,2740.3,2739.9,0.06893158]
[1740220657809,5.43062,2740.3,2739.7,3.64993]
[1740220658010,3.64941,2740.2,2740.0,0.06893158]
[1740220658188,3.64941,2740.2,2739.5,7.30045]
[1740220658388,4.557401,2740.2,2740.1,0.06893158]
[1740220658705,4.557401,2740.2,2739.6,3.65007]
[1740220658877,4.557401,2740.2,2740.1,0.06893158]
[1740220659076,4.557401,2740.2,2739.7,3.65001]
[1740220659413,4.557401,2740.2,2739.8,0.06893158]
[1740220659635,0.53880774,2740.1,2739.8,0.06893158]
[1740220659789,0.907991,2740.2,2739.7,3.64996]
[1740220659991,0.907991,2740.2,2739.9,0.06893158]
[1740220660310,0.907991,2740.2,2740.0,0.06893158]
[1740220660506,1.78132,2740.3,2739.9,3.64967]
[1740220660827,5.32,2740.5,2740.1,0.06917369]
[1740220661016,5.32,2740.5,2740.0,0.1294]
[1740220661218,5.32,2740.5,2740.2,0.06917369]
[1740220661421,0.979809,2740.5,2740.0,3.77901]
[1740220661622,4.628789,2740.5,2740.3,0.06917369]
[1740220661825,0.979809,2740.5,2740.0,3.77903]
[1740220662214,4.47809,2740.6,2740.1,0.06917369]
[1740220662414,3.64898,2740.5,2740.1,0.06917369]
[1740220662618,0.8292,2740.6,2740.1,3.71863369]
[1740220662924,0.8292,2740.6,2740.1,3.71867369]
[1740220663223,0.8292,2740.6,2740.2,3.64936]
[1740220663388,11.93281,2740.8,2740.2,3.64936]
[1740220663589,12.67831,2740.8,2740.2,3.64936]
[1740220663789,9.0297,2740.8,2740.3,3.71836369]
[1740220664003,9.0297,2740.8,2740.3,0.06917369]
[1740220664216,12.67828,2740.8,2740.3,3.71838369]
[1740220664422,12.67828,2740.8,2740.3,3.64921]
[1740220664593,9.0297,2740.8,2740.4,0.06917369]
[1740220664798,12.67827,2740.8,2740.4,0.06917369]
[1740220665005,0.46812808,2740.7,2740.4,0.06917369]
[1740220665194,0.46812808,2740.7,2740.2,3.64927]
[1740220665424,0.46812808,2740.7,2740.5,0.06859724]
[1740220665727,0.46812808,2740.7,2740.6,0.06859724]
[1740220666029,12.67827,2740.8,2740.2,3.64927]
[1740220666030,9.0297,2740.8,2740.2,3.64927]
[1740220666204,9.0297,2740.8,2740.6,0.06859724]
[1740220666405,9.0297,2740.8,2740.2,7.29854]
[1740220666606,9.0297,2740.8,2740.7,0.06859724]
[1740220666805,9.0297,2740.8,2740.2,7.29854]
[1740220667007,9.0297,2740.8,2740.7,0.06859724]
[1740220667228,9.0297,2740.8,2740.2,3.64927]
[1740220667543,5.22327,2740.8,2740.2,3.64927]
[1740220667747,5.22327,2740.8,2740.3,0.06859724]
[1740220667948,5.22327,2740.8,2740.2,3.64927]
[1740220668125,5.22327,2740.8,2740.4,0.06859724]